Cogmind - Beta 15 @@@ ROGUE MODE // 2025.07.25 @ 20:38:25 Player: AshCrow Result: Self-destructed Performance ------------- Evolutions (2) 1000 Regions Visited (3) 600 Robots Destroyed (26) 130 Value Destroyed (682) 682 Prototype IDs (2) 40 Alien Tech Used (0) 0 Bonus (-15) -15 TOTAL SCORE: 2437 Bonus ------- Friendly Fire -15 Cogmind --------- Core Integrity 334/550 Matter 200/300 Energy 100/100 System Corruption 0% Temperature Warning (321) Movement Core (450) Ox8 Location -8/Materials Parts ------- > --- POWER (1) -------- (None) > --- PROPULSION (4) --- Light Treads > --- UTILITY (3) ------ Large Storage Unit Machine Analyzer Makeshift Light Armor Plating > --- WEAPON (3) ------- Battle Cannon > --- INVENTORY (15) --- Light Ion Engine Light Ion Engine Light Ion Engine Subdweller Power Source Small Storage Unit Signal Interpreter Subdweller Beam Cannon Light Assault Rifle Light Assault Rifle Battle Rifle Subdweller Machine Gun Subdweller Shrapnel Launcher Datajack Scrap Shield Fragment (49) Peak State ------------ > --- POWER ------------ Light Nuclear Core > --- PROPULSION ------- Light Treads Light Treads Light Treads > --- UTILITY ---------- Large Storage Unit Machine Analyzer Makeshift Light Armor Plating > --- WEAPON ----------- Beam Rifle Battle Rifle Battle Cannon > --- INVENTORY -------- Light Ion Engine Light Ion Engine Light Ion Engine Subdweller Power Source Small Storage Unit Signal Interpreter Subdweller Beam Cannon Light Assault Rifle Light Assault Rifle Battle Rifle Subdweller Machine Gun Subdweller Shrapnel Launcher Datajack Scrap Shield Fragment [Rating: 22] Favorites ----------- Power Subdweller Power Source Engine Subdweller Power Source Power Core Light Nuclear Core Propulsion Light Treads Treads Light Treads Utility Large Storage Unit Device Disposable Heat Sink Storage Large Storage Unit Processor Machine Analyzer Protection Makeshift Light Armor Plating Weapon Light Assault Rifle Energy Gun Small Laser Ballistic Gun Light Assault Rifle Ballistic Cannon Battle Cannon Launcher Subdweller Shrapnel Launcher Build | -11 -10 -10 -8 ------- Run | Yrd Mat Sub Mat Slots Evolved 4 | . . . 4 Power . | . . . . Propulsion 2 | . . . 2 Utility 1 | . . . 1 Weapon 1 | . . . 1 Parts Attached 26 | 7 3 11 5 Power 7 | 2 2 2 1 Engine 6 | 2 2 2 . Core 1 | . . . 1 Reactor . | . . . . Propulsion 5 | 2 . 2 1 Treads 5 | 2 . 2 1 Leg . | . . . . Wheel . | . . . . Hover . | . . . . Flight . | . . . . Utility 5 | 1 1 2 1 Device 1 | . . 1 . Storage 2 | 1 1 . . Processor 1 | . . 1 . Hackware . | . . . . Protection 1 | . . . 1 Artifact . | . . . . Weapon 9 | 2 . 5 2 Energy Gun 2 | 1 . . 1 Energy Cannon . | . . . . Ballistic Gun 5 | 1 . 4 . Ballistic Cannon 1 | . . . 1 Launcher 1 | . . 1 . Special Weapon . | . . . . Impact Weapon . | . . . . Slashing Weapon . | . . . . Piercing Weapon . | . . . . Special Melee Weapon . | . . . . Unidentified Prototypes . | . . . . Parts Lost 10 | . . 4 6 Power 2 | . . 1 1 Propulsion 4 | . . 2 2 Utility . | . . . . Weapon 4 | . . 1 3 Highest Loss Streak 5 | . . 2 5 To Critical Strikes . | . . . . Average Backups 10 | 1 7 11 12 Power 3 | . 2 3 3 Propulsion 1 | . 1 . . Utility 1 | . 1 2 2 Weapon 3 | . 1 3 6 Tool/Special . | . . . . Unused Backups 7 | . 1 . 6 Power 1 | . . . 1 Propulsion . | . . . . Utility 1 | . . . 1 Weapon 4 | . 1 . 3 Tool/Special 1 | . . . 1 Average Slot Usage (%) 91 | . 85 95 72 Engine 13 | . 14 13 6 Treads 26 | . 28 26 18 Device 5 | . . 8 . Storage 13 | . 14 14 9 Processor 2 | . . 2 9 Energy Gun 5 | . 14 2 2 Ballistic Gun 18 | . 14 21 13 Launcher 2 | . . 4 . Peak Build Rating 22 | 6 7 13 22 Average Rating 9 | 4 6 10 17 On Entrance 6 | . 6 7 13 Naked Turns . | . . . . Heaviest Build 38 | 12 27 38 37 Greatest Support 60 | 40 40 40 60 Greatest Overweight (x) 10 | 1 . 1 10 Average Overweight (x) . | . . . . Largest Inventory Capacity 15 | 8 15 15 15 Average Capacity 13 | 6 10 15 15 Most Carried 15 | 2 11 15 15 Average Carried 10 | 1 7 12 13 Final Capacity 15 | 8 15 15 15 Final Carried 15 | 2 11 15 14 Class Distribution -------------------- 97% | Mutant Dominant Class ---------------- Mutant | -10/Materials Mutant | -10/Subcaves Mutant | -8/Materials Resources | -11 -10 -10 -8 ----------- Run | Yrd Mat Sub Mat Matter Collected 1117 | 191 125 636 165 Remotely . | . . . . Salvage Created 664 | . 180 278 206 Parts 51 | . 15 20 16 Haulers Intercepted . | . . . . Recyclers Shooed 2 | . 2 . . Parts Field Recycled . | . . . . Retrieved Matter . | . . . . Parts Self-Destructed 13 | . . 13 . Prevented . | . . . . Kills | -11 -10 -10 -8 ------- Run | Yrd Mat Sub Mat Combat Hostiles Destroyed 25 | . 10 9 6 Guns 16 | . 10 3 3 Cannons 3 | . . . 3 AOE 6 | . . 6 . Classes Destroyed 5 | . 2 1 2 Builder 1 | . . . 1 Swarmer 11 | . 8 . 3 Grunt 4 | . 2 . 2 Sentry 1 | . . . 1 Subdweller 9 | . . 9 . Best Kill Streak 5 | . 3 2 5 Combat Bots Only 4 | . 3 2 4 Max Kills in Single Turn 2 | . 2 1 1 Gunslinging . | . . . . Exploded 1 | . . 1 . Melee . | . . . . Uniques/NPCs Destroyed . | . . . . Combat | -11 -10 -10 -8 -------- Run | Yrd Mat Sub Mat Hostile Shots Fired 152 | . 56 16 80 Missed 33 | . 16 4 13 Hits 119 | . 40 12 67 Melee 1 | . . . 1 Projectile 118 | . 40 12 66 AOE 6 | . . 6 . Critical Strikes 2 | . . . 2 Damage Taken 1751 | . 323 627 801 Core 299 | . 41 42 216 Absorbed by Shields . | . . . . Core Remaining (%) 83 | 100 . 66 . Volleys Fired 93 | . 26 35 32 Largest 3 | . 2 2 3 Hottest 114 | . 60 60 114 Shots Fired 150 | . 50 38 62 Gun 108 | . 50 16 42 Cannon 20 | . . . 20 Launcher 22 | . . 22 . Special . | . . . . Kinetic 111 | . 26 36 49 Thermal 39 | . 24 2 13 Explosive . | . . . . Electromagnetic . | . . . . Robot Hit Streak 13 | . 13 8 4 Robot Miss Streak 5 | . 5 1 5 Penetration Max . | . . . . Secondary Targets 2 | . 2 . . Max Gunslinging Chain 1 | . 1 . . Shots Hit Robots 75 | . 31 18 26 Core Hits 47 | . 17 18 12 Critical Kills . | . . . . Critical Parts Destroyed 1 | . . . 1 Critical Strikes 4 | . . . 4 Burn 3 | . . . 3 Destroy 1 | . . . 1 Melee Attacks . | . . . . Impact . | . . . . Slashing . | . . . . Piercing . | . . . . Sneak Attacks . | . . . . Combat Hostiles . | . . . . Follow-up Attacks . | . . . . Damage Inflicted 1609 | . 304 778 527 Guns 807 | . 304 130 373 Cannons 154 | . . . 154 Explosions 648 | . . 648 . Melee . | . . . . Ramming . | . . . . Kinetic 1324 | . 172 767 385 Thermal 285 | . 132 11 142 Explosive . | . . . . Electromagnetic . | . . . . Impact . | . . . . Slashing . | . . . . Piercing . | . . . . Highest Corruption . | . . . . Average Corruption . | . . . . Corruption Purged . | . . . . Corruption Blocked . | . . . . Overload Shots . | . . . . Overflow Damage . | . . . . Projectiles . | . . . . Explosions . | . . . . Melee . | . . . . Knockbacks . | . . . . Impact . | . . . . Kinetic . | . . . . Secondary . | . . . . Self-Inflicted Damage 120 | . . 120 . Shots 8 | . . 8 . Rammed . | . . . . Targets Rammed . | . . . . Kicked . | . . . . Crushed . | . . . . Highest Temperature 641 | . 60 . 641 Average Temperature 179 | . 25 . 302 Received Heat Transfer 285 | . 12 57 216 Effects 14 | . . . 14 Energy Bleed 3 | . . . 3 Interference 5 | . . . 5 Matter Decay 2 | . . . 2 Short Circuit 1 | . . . 1 Damage (major) 2 | . . . 2 Damage (core) 1 | . . . 1 Siege Activations . | . . . . Martial Activations . | . . . . Shielding Activations . | . . . . Robots Disrupted . | . . . . Combat Hostiles . | . . . . Robots Corrupted . | . . . . Combat Hostiles . | . . . . Parts Fried . | . . . . Impact Corruptions . | . . . . Robots Melted . | . . . . Combat Hostiles . | . . . . Parts Melted 2 | . . . 2 Heat Transferred 917 | . 300 25 592 Parts Sabotaged . | . . . . Parts Stolen . | . . . . Parts Stripped . | . . . . Power Chain Reactions . | . . . . Alert | -11 -10 -10 -8 ------- Run | Yrd Mat Sub Mat Maximum Alert Level . | . . . . Low Security (%) 100 | 100 100 . 100 Level 1 . | . . . . Level 2 . | . . . . Level 3 . | . . . . Level 4 . | . . . . Level 5 . | . . . . High Security . | . . . . Max Security . | . . . . Peak Influence 100 | . 100 . 81 Initial . | . . . . Average 21 | . 23 . 17 Influence Increases 374 | . 235 . 139 Destroy 0b10 Robot/C 320 | . 200 . 120 Destroy 0b10 Robot/NC 5 | . . . 5 Destroy Leader 40 | . 30 . 10 Successful Hack 5 | . 5 . . Destroy Structure 4 | . . . 4 Influence Decreases 335 | . 226 9 100 Entered New Map 5 | . . 5 . Time Decay 280 | . 226 4 50 Lost Part 50 | . . . 50 Squads Dispatched 3 | . 1 . 2 Investigation . | . . . . Extermination . | . . . . Reinforcement 3 | . 1 . 2 Assault . | . . . . Garrison . | . . . . Intercept . | . . . . Searches Triggered . | . . . . Construction Impeded . | . . . . Haulers Reinforced . | . . . . Active Scanning Responses . | . . . . Cargo Convoy Interrupts . | . . . . Stealth | -11 -10 -10 -8 --------- Run | Yrd Mat Sub Mat Distress Signals 3 | . 1 . 2 Communications Jammed . | . . . . Distress Signals . | . . . . Times Spotted 37 | . 15 8 14 Peak Tracking Total 10 | . 3 2 10 Tactical Retreats 1 | . . 1 . Traps | -11 -10 -10 -8 ------- Run | Yrd Mat Sub Mat Traps Triggered 1 | . . 1 . Indirectly . | . . . . Trap Hack Attempts . | . . . . Triggered . | . . . . Disarmed . | . . . . Reprogrammed . | . . . . Reused . | . . . . Traps Extracted . | . . . . Installed . | . . . . Triggered . | . . . . Machines | -11 -10 -10 -8 ---------- Run | Yrd Mat Sub Mat Machines Disabled . | . . . . Max in Single Turn . | . . . . Machines Repaired . | . . . . Machines Dismantled . | . . . . Machines Sabotaged . | . . . . Overloaded Fab Kills . | . . . . Hacking | -11 -10 -10 -8 --------- Run | Yrd Mat Sub Mat Machines Accessed 2 | . 1 . 1 Terminals 2 | . 1 . 1 Fabricators . | . . . . Repair Stations . | . . . . Recycling Units . | . . . . Scanalyzers . | . . . . Garrison Access . | . . . . Total Hacks 7 | . 6 . 1 Successful 2 | . 1 . 1 Failed 5 | . 5 . . Catastrophic . | . . . . Database Lockouts . | . . . . Manual 1 | . 1 . . Terminals 7 | . 6 . 1 Fabricators . | . . . . Repair Stations . | . . . . Recycling Units . | . . . . Scanalyzers . | . . . . Garrison Access . | . . . . Terminal Hacks 2 | . 1 . 1 Record 1 | . . . 1 Prototype ID Bank 1 | . 1 . . Fabricator Hacks . | . . . . Repair Station Hacks . | . . . . Recycling Unit Hacks . | . . . . Scanalyzer . | . . . . Garrison Access Hacks . | . . . . Unauthorized Hacks . | . . . . Terminals . | . . . . Fabricators . | . . . . Repair Stations . | . . . . Recycling Units . | . . . . Scanalyzers . | . . . . Garrison Access . | . . . . Data Cores Recovered . | . . . . Used . | . . . . Hacking Detections 1 | . 1 . . Full Trace Events . | . . . . Feedback Events . | . . . . Feedback Blocked . | . . . . Robot Schematics Acquired . | . . . . Robots Built . | . . . . Authchips . | . . . . Time . | . . . . Total Robot Build Rating . | . . . . Part Schematics Acquired . | . . . . Parts Built . | . . . . Authchips . | . . . . Time . | . . . . Total Part Build Rating . | . . . . Parts Repaired . | . . . . Time . | . . . . Parts Recycled . | . . . . Recycled Matter . | . . . . Retrieved Matter . | . . . . Retrieved Components . | . . . . Parts Scanalyzed . | . . . . Part Schematics Acquired . | . . . . Parts Damaged . | . . . . Bothacking | -11 -10 -10 -8 ------------ Run | Yrd Mat Sub Mat Used RIF Installer . | . . . . Robots Hacked . | . . . . Non-combat . | . . . . Combat . | . . . . Robot Hacks Applied . | . . . . Relay Couplers Released . | . . . . Fabnet Peak Effective % . | . . . . Robots Rewired . | . . . . Allies Hacked . | . . . . Hacks Repelled . | . . . . Allies | -11 -10 -10 -8 -------- Run | Yrd Mat Sub Mat Total Allies . | . . . . Largest Group . | . . . . Highest-Rated Group . | . . . . Highest-Rated Ally . | . . . . Total Orders . | . . . . Ally Attacks . | . . . . Total Damage . | . . . . Kills . | . . . . Allies Corrupted . | . . . . Allies Melted . | . . . . Intel | -11 -10 -10 -8 ------- Run | Yrd Mat Sub Mat Active Infowar (turns) 845 | . . 588 257 Machine Analysis 845 | . . 588 257 Robot Analysis Total . | . . . . Derelict Logs Recovered 1 | . . 1 . Drone Launches . | . . . . Drone Recoveries . | . . . . Exploration | -11 -10 -10 -8 ------------- Run | Yrd Mat Sub Mat Turns Passed 4380 | 78 1258 2767 277 Spaces Moved 1781 | 49 292 1327 113 Core 16 | 14 . . 2 Treads 1765 | 35 292 1327 111 Legs . | . . . . Wheels . | . . . . Hover . | . . . . Flight . | . . . . Fastest Speed 50 | 50 160 160 160 Average Speed 164 | 138 160 165 166 Slowest Speed 550 | 160 160 240 550 Overloaded Moves . | . . . . Propulsion Burnouts . | . . . . Robots Hopped . | . . . . Potential Cave-ins 3 | . . 3 . Cave-ins Triggered . | . . . . Exploration Rate (%) 30 | 4 53 50 14 Regions Visited 3 Branch Regions 1 Pre-discovered Areas 1 | . . 1 . Known Exits Taken . | . . . . Unknown Exits Taken 3 | 1 1 1 . Scrap Searched 6 | . . 6 . Spaces Dug 66 | . . 66 . Terrain Destroyed 249 | . . 247 2 Melee . | . . . . Projectile 2 | . . . 2 AOE 247 | . . 247 . Terrain Rammed . | . . . . Walls Destroyed . | . . . . Machines Disabled . | . . . . Actions | -11 -10 -10 -8 --------- Run | Yrd Mat Sub Mat Total 3100 | 56 1038 1856 150 Wait 1166 | . 709 457 . Move 1778 | 48 291 1326 113 Hop . | . . . . Pick Up 16 | 1 7 8 . Fast Attach 10 | 6 1 1 2 Attach 7 | . . 5 2 Detach 2 | . 1 1 . Swap 17 | 1 2 13 1 Drop 4 | . 1 3 . Fire 93 | . 26 35 32 Melee . | . . . . Ram . | . . . . Kick . | . . . . Crush . | . . . . Escape Stasis . | . . . . Rewire 7 | . . 7 . Trap . | . . . . Miscellaneous . | . . . . Route ------- -11/Scrapyard -10/Materials (discovered 4 exits: [*Mat x2] / [*Min] / [*Sub]) -10/Subcaves -8/Materials History --------- Turn | Location | Event 47 | -11/Scrapyard | Discovered new exit (range 15) 79 | -11/Scrapyard | Entered Materials 217 | -10/Materials | Discovered new exit (range 15) 272 | -10/Materials | Discovered new exit (range 15) 308 | -10/Materials | Build established: Mutant 1065 | -10/Materials | Discovered new exit (range 10) 1315 | -10/Materials | Discovered new exit (range 8) 1337 | -10/Materials | Entered Subcaves 1338 | -10/Subcaves | Approached by a straggling Scientist 1710 | -10/Subcaves | Disturbed a concealed Subdweller 2254 | -10/Subcaves | Discovered new exit (range 13) 2409 | -10/Subcaves | A swath of the cavern ceiling suddenly collapsed 2535 | -10/Subcaves | Learned location of Zion (-7) 3369 | -10/Subcaves | Shifting Twisted Machinery released Flamer 3734 | -10/Subcaves | Shifting Twisted Machinery released Battle Cannon 4104 | -10/Subcaves | Entered Materials 4104 | -8/Materials | Evolved 4 slots: Propulsion x2, Utility x1, Weapon x1 4381 | -8/Materials | Self-destructed Last Messages --------------- Machine Analyzer temporarily disabled. K-01 Serf collects debris. Overheating: Matter decay (-37). Lgt. Treads destroyed. Lgt. Treads broken. Overheating: Short circuit. K-01 Serf collects debris. Overheating: Matter decay (-22). K-01 Serf collects debris. Overheating: System interference. Battle Cannon temporarily disabled. Acquired 12 matter. K-01 Serf collects debris. Overheating: Mak. Light Armor Plating damaged (-68). Overheating: Machine Analyzer damaged (-9). Battle Rifle destroyed. Critical hit (Burn: +37). K-01 Serf collects debris. Beam Rifle destroyed. Map ----- +----------------------------------------------------+ | ?????????????????????????????????????????????????? | | ?????????????????????????????????????????????????? | | ?????????????????????????????????????????????????? | | ?????????????????????????????????????????????????? | | ?????????????????????????????????????????????????? | | ?????????????????????????????????????????????????? | | ?????????????????????????????????????????????????? | | ?????????????????????????????????????????????????? | | ???????????????????????#?????????????????????????? | | ??????????????????????? ?????????????????????????? | | ????????????H?????????? ?????????????????????????? | | ??????????????????????? ?????????????????????????? | | ??????????????????????? ?????????????????????????? | | ??????????????????????? ?????????????????????????? | | ????????????????+##????+#????????????????????????? | | ????????????????? ? #???????????????????????? | | ????????????????? #???????????????????????? | | ?????????????????""" """ #???????????????????????? | | ?????????????????""" """ #???????????????????????? | | ???????????????? """ """ #???????????????????????? | | ????????????""???? %???????????????????????? | | ????????????T????""T"" =%#???????????????????????? | | ?????????????????"""""[*u#???????????????????????? | | ??????????????###????###;######################??? | | ???????????# # ??##[ls! [ a ?? | | ???????????+ + #;k%@ ?? | | ??????????????# /g!! == ?? | | ??????????????# ##!#########################? | | ??????????????# ??#%# """ #?# #? | | ??????????????# ???# # "T" #?# #? | | ??????????????####????# # #?# #? | | ??????????????????????# # % #?# #? | | ????????????????####### ##+########?# #? | | ????????? ######## #? | | ????????? + #? | | ????????? ######+####### | | ?????????? | | ?????????? | | ??????????? | | ??????????########### ############ #### ### ## | | ????????????????????# ???# # #??# #??? # | | ????????????????????# ???#= # #??# #????# | | ????????????????????# ???# + #??# #????? | | ????????????????????# ???# "T" # #??#####????? | | ???????????????????? ???# """ # #???????????? | | ???????????????????? ????######### #???????????? | | ???????????????????? ?????????#####+#####????????? | | ??????????????????????????????# = #????????? | | ??????????????????????????????# |#????????? | | ??????????????????????????????# #????????? | +----------------------------------------------------+ Best States ------------- Heat Dissipation 31 Coolant Potential 50 Energy Generation 15 Energy Capacity 250 Matter Stores 300 Matter Capacity 300 Sight Range 16 Terrain Scan Density 10 Armor Coverage 100 Evasion (%) 40 Recoil Reduction 3 Item Schematics ----------------- None Robot Schematics ------------------ None Fabricated ------------ Nothing Repaired ---------- Nothing Alien Tech Used ----------------- None Achievements -------------- None Challenges ------------ None Game ------ Seed ScrapoidDecoderSuperbattery Manual? 0 Play Time 00:22:19 Cumulative 34.2 hours Start 2025.07.25 @ 20:18:24 End 2025.07.25 @ 20:38:25 Sessions 1 Manual Loads 0 Difficulty Rogue Special Mode None Game No. 60 Rogue 58 Adventurer 0 Explorer 2 Win Type - Total 0 Types 0/0/0/0/0/0/0/0/0/0 Lore% 32 Gallery% 27 Achievement% 29 Wizard Run 0 Options --------- Layout 1 ASCII 0 Keyboard 1 Movement Numpad Keybinds 0 Fullscreen 1 Font 24/Smallcaps Map View 50x40 Zoom Use 0% Tactical HUD 0 Map Filters NONE Filters NONE Steam 1 RUN: 16315ae9-8d5c-47d2-810a-1bdf01913655